fUST/lending_fUST_20240218
["ID","MTS","AMOUNT","RATE_DAILY","PERIOD"]
[314343927,1708206640628,-500.0,0.00027945,2]
[314343928,1708206640638,-2279.69,0.00027945,2]
[314343929,1708206640647,-500.0,0.00027945,2]
[314343930,1708206640656,-500.0,0.00027945,2]
[314343931,1708206640665,-500.0,0.00027945,2]
[314343932,1708206640675,-707.55,0.00027945,2]
[314343933,1708206640685,-500.0,0.00027945,2]
[314343934,1708206640694,-500.0,0.00027945,2]
[314343935,1708206640704,-500.0,0.00027945,2]
[314343936,1708206640714,-500.0,0.00027945,2]
[314343937,1708206640723,-4055.31,0.00027945,2]
[314343938,1708206640732,-500.0,0.00027945,2]
[314343939,1708206640741,-500.0,0.00027945,2]
[314343940,1708206640751,-500.0,0.00027945,2]
[314343941,1708206640760,-500.0,0.00027945,2]
[314343942,1708206640769,-500.0,0.00027945,2]
[314343943,1708206640778,-2188.75,0.00027945,2]
[314343944,1708206640789,-2194.48,0.00027945,2]
[314343945,1708206640799,-500.0,0.00027945,2]
[314343946,1708206640808,-648.65,0.00027945,2]
[314343947,1708206640817,-500.0,0.00027945,2]
[314343948,1708206640827,-3371.54,0.00027945,2]
[314343949,1708206640836,-500.0,0.00027945,2]
[314343950,1708206640846,-673.83,0.00027945,2]
[314343951,1708206640855,-500.0,0.00027945,2]
[314343952,1708206640865,-500.0,0.00027945,2]
[314343953,1708206640875,-915.42,0.00027945,2]
[314343954,1708206640884,-500.0,0.00027945,2]
[314343955,1708206640893,-500.0,0.00027945,2]
[314343956,1708206640902,-500.0,0.00027945,2]
[314343958,1708206640912,-500.0,0.00027945,2]
[314343960,1708206640921,-500.0,0.00027945,2]
[314343962,1708206640930,-500.0,0.00027945,2]
[314343963,1708206640940,-500.0,0.00027945,2]
[314343965,1708206640950,-514.96,0.00027945,2]
[314343967,1708206640959,-500.0,0.00027945,2]
[314343968,1708206640969,-500.0,0.00027945,2]
[314343969,1708206640978,-3229.71,0.00027945,2]
[314343970,1708206640987,-2194.96,0.00027945,2]
[314343971,1708206640997,-500.0,0.00027945,2]
[314343972,1708206641006,-157.515158,0.00028134,2]
[314343973,1708206641016,-196.782964,0.00028134,2]
[314343974,1708206641025,-196.782964,0.00028134,2]
[314343975,1708206641034,-176.01309,0.00028134,2]
[314343976,1708206641044,-163.373075,0.00028134,2]
[314343977,1708206641052,-166.496741,0.00028134,2]
[314343978,1708206641062,-158.431479,0.00028134,2]
[314343979,1708206641071,-731.21,0.00028219,2]
[314343980,1708206641081,-493.00244291,0.00028219,2]
[314343981,1708206641090,-500.0,0.00028219,2]
[314343982,1708206641100,-500.0,0.00028219,2]
[314343983,1708206641109,-500.0,0.00028219,2]
[314343984,1708206641118,-295.36967243,0.00028219,2]
[314343985,1708206641127,-167.23199005,0.00028219,2]
[314343986,1708206641136,-198.19669351,0.00028219,2]
[314343987,1708206641146,-632.14,0.00028219,2]
[314343988,1708206641155,-609.27,0.00028219,2]
[314343989,1708206641163,-500.0,0.00028219,2]
[314343990,1708206641173,-500.0,0.00028219,2]
[314343991,1708206641182,-500.0,0.00028219,2]
[314343992,1708206641191,-500.0,0.00028219,2]
[314343993,1708206641201,-500.0,0.00028219,2]
[314343994,1708206641210,-500.0,0.00028219,2]
[314343995,1708206641220,-500.0,0.00028219,2]
[314343996,1708206641229,-2279.69,0.00028219,2]
[314343997,1708206641238,-500.0,0.00028219,2]
[314343998,1708206641248,-500.0,0.00028219,2]
[314343999,1708206641257,-500.0,0.00028219,2]
[314344000,1708206641267,-707.55,0.00028219,2]
[314344001,1708206641276,-500.0,0.00028219,2]
[314344002,1708206641284,-500.0,0.00028219,2]
[314344003,1708206641294,-500.0,0.00028219,2]
[314344004,1708206641303,-4055.31,0.00028219,2]
[314344005,1708206641312,-635.23390049,0.00028219,2]
[314344006,1708206641322,-500.0,0.00028219,2]
[314344007,1708206641331,-500.0,0.00028219,2]
[314344008,1708206641340,-500.0,0.00028219,2]
[314344009,1708206641350,-500.0,0.00028219,2]
[314344010,1708206641359,-2188.75,0.00028219,2]
[314344011,1708206641368,-2194.48,0.00028219,2]
[314344012,1708206641378,-500.0,0.00028219,2]
[314344013,1708206641387,-648.65,0.00028219,2]
[314344014,1708206641396,-517.07370122,0.00028219,2]
[314344015,1708206641405,-3371.54,0.00028219,2]
[314344016,1708206641414,-500.0,0.00028219,2]
[314344017,1708206641424,-673.83,0.00028219,2]
[314344018,1708206641433,-500.0,0.00028219,2]
[314344019,1708206641442,-500.0,0.00028219,2]
[314344020,1708206641452,-915.42,0.00028219,2]
[314344021,1708206641462,-500.0,0.00028219,2]
[314344022,1708206641471,-500.0,0.00028219,2]
[314344023,1708206641480,-500.0,0.00028219,2]
[314344024,1708206641490,-500.0,0.00028219,2]
[314344025,1708206641499,-500.0,0.00028219,2]
[314344026,1708206641508,-500.0,0.00028219,2]
[314344027,1708206641517,-500.0,0.00028219,2]
[314344028,1708206641526,-514.96,0.00028219,2]
[314344029,1708206641535,-201.60546379,0.00028219,2]
[314344030,1708206641544,-500.0,0.00028219,2]
[314344031,1708206641553,-3229.71,0.00028219,2]
[314344032,1708206641562,-2194.96,0.00028219,2]
[314344033,1708206641571,-182.95614971,0.00028387,4]
[314344034,1708206641580,-731.21,0.00028493,2]
[314344035,1708206641590,-500.0,0.00028493,2]
[314344036,1708206641598,-645.5992516,0.00028493,2]
[314344037,1708206641608,-632.14,0.00028493,2]
[314344038,1708206641617,-609.27,0.00028493,2]
[314344039,1708206641626,-500.0,0.00028493,2]
[314344040,1708206641635,-500.0,0.00028493,2]
[314344041,1708206641644,-500.0,0.00028493,2]
[314344042,1708206641653,-410.34813149,0.00028493,2]
[314344043,1708206641663,-500.0,0.00028493,2]
[314344044,1708206641672,-458.0464762,0.00028493,2]
[314344045,1708206641681,-539.16,0.00028493,2]
[314344046,1708206641764,-2279.69,0.00028493,2]
[314344047,1708206641773,-500.0,0.00028493,2]
[314344048,1708206641783,-219.0763038,0.00028493,2]
[314344049,1708206641794,-500.0,0.00028493,2]
[314344050,1708206641803,-707.55,0.00028493,2]
[314344051,1708206641812,-500.0,0.00028493,2]
[314344052,1708206641821,-500.0,0.00028493,2]
[314344053,1708206641831,-500.0,0.00028493,2]
[314344054,1708206641840,-4055.31,0.00028493,2]
[314344055,1708206641849,-500.0,0.00028493,2]
[314344056,1708206641858,-500.0,0.00028493,2]
[314344057,1708206641869,-500.0,0.00028493,2]
[314344058,1708206641878,-500.0,0.00028493,2]
[314344059,1708206641887,-2188.75,0.00028493,2]
[314344060,1708206641896,-2194.48,0.00028493,2]
[314344061,1708206641905,-500.0,0.00028493,2]
[314344062,1708206641914,-648.65,0.00028493,2]
[314344063,1708206641923,-3371.54,0.00028493,2]
[314344064,1708206641932,-673.83,0.00028493,2]
[314344065,1708206641941,-500.0,0.00028493,2]
[314344066,1708206641950,-500.0,0.00028493,2]
[314344067,1708206641959,-915.42,0.00028493,2]
[314344068,1708206641968,-500.0,0.00028493,2]
[314344069,1708206641978,-500.0,0.00028493,2]
[314344070,1708206641987,-500.0,0.00028493,2]
[314344071,1708206641996,-500.0,0.00028493,2]
[314344072,1708206642006,-500.0,0.00028493,2]
[314344073,1708206642015,-500.0,0.00028493,2]
[314344074,1708206642024,-514.96,0.00028493,2]
[314344075,1708206642034,-500.0,0.00028493,2]
[314344076,1708206642043,-3229.71,0.00028493,2]
[314344077,1708206642053,-2194.96,0.00028493,2]
[314344078,1708206642062,-176.01309,0.00028603,2]
[314344079,1708206642071,-659.86,0.00028757,3]
[314344080,1708206642080,-329.92,0.00028757,3]
[314344081,1708206642090,-731.21,0.00028767,2]
[314344082,1708206642099,-500.0,0.00028767,2]
[314344083,1708206642109,-632.14,0.00028767,2]
[314344084,1708206642118,-609.27,0.00028767,2]
[314344085,1708206642127,-500.0,0.00028767,2]
[314344086,1708206642136,-500.0,0.00028767,2]
[314344087,1708206642145,-500.0,0.00028767,2]
[314344088,1708206642154,-500.0,0.00028767,2]
[314344089,1708206642163,-2279.69,0.00028767,2]
[314344090,1708206642174,-500.0,0.00028767,2]
[314344091,1708206642183,-500.0,0.00028767,2]
[314344092,1708206642192,-707.55,0.00028767,2]
[314344093,1708206642201,-500.0,0.00028767,2]
[314344095,1708206642210,-500.0,0.00028767,2]
[314344096,1708206642219,-500.0,0.00028767,2]
[314344097,1708206642228,-4055.31,0.00028767,2]
[314344098,1708206642237,-500.0,0.00028767,2]
[314344100,1708206642246,-500.0,0.00028767,2]
[314344103,1708206642255,-500.0,0.00028767,2]
[314344104,1708206642264,-579.769935,0.00028767,2]
[314344107,1708206642273,-155.0,0.00028767,2]
[314344109,1708206642282,-2188.75,0.00028767,2]
[314344110,1708206642291,-2194.48,0.00028767,2]
[314344112,1708206642300,-648.65,0.00028767,2]
[314344113,1708206642309,-3371.54,0.00028767,2]
[314344114,1708206642318,-673.83,0.00028767,2]
[314344115,1708206642327,-500.0,0.00028767,2]
[314344116,1708206642337,-500.0,0.00028767,2]
[314344117,1708206642346,-915.42,0.00028767,2]
[314344118,1708206642355,-500.0,0.00028767,2]
[314344120,1708206642364,-500.0,0.00028767,2]
[314344122,1708206642374,-500.0,0.00028767,2]
[314344124,1708206642383,-500.0,0.00028767,2]
[314344126,1708206642392,-500.0,0.00028767,2]
[314344127,1708206642401,-500.0,0.00028767,2]
[314344128,1708206642410,-514.96,0.00028767,2]
[314344129,1708206642418,-500.0,0.00028767,2]
[314344131,1708206642427,-3229.71,0.00028767,2]
[314344133,1708206642437,-2194.96,0.00028767,2]
[314344134,1708206642446,-163.373075,0.00028838,2]
[314344135,1708206642455,-731.21,0.00029041,2]
[314344136,1708206642465,-224.5,0.00029041,2]
[314344137,1708206642474,-632.14,0.00029041,2]
[314344138,1708206642483,-609.27,0.00029041,2]
[314344140,1708206642493,-500.0,0.00029041,2]
[314344142,1708206642502,-500.0,0.00029041,2]
[314344143,1708206642511,-444.8,0.00029041,2]
[314344144,1708206642520,-500.0,0.00029041,2]
[314344145,1708206642529,-2279.69,0.00029041,2]
[314344146,1708206642539,-500.0,0.00029041,2]
[314344147,1708206642548,-500.0,0.00029041,2]
[314344149,1708206642557,-707.55,0.00029041,2]
[314344150,1708206642566,-209.56,0.00029041,2]
[314344151,1708206642575,-500.0,0.00029041,2]
[314344152,1708206642585,-500.0,0.00029041,2]
[314344153,1708206642595,-4055.31,0.00029041,2]
[314344154,1708206642603,-500.0,0.00029041,2]
[314344155,1708206642613,-500.0,0.00029041,2]
[314344156,1708206642622,-500.0,0.00029041,2]
[314344157,1708206642631,-2188.75,0.00029041,2]
[314344158,1708206642641,-2194.48,0.00029041,2]
[314344159,1708206642650,-648.65,0.00029041,2]
[314344160,1708206642660,-3371.54,0.00029041,2]
[314344161,1708206642670,-673.83,0.00029041,2]
[314344162,1708206642683,-500.0,0.00029041,2]
[314344163,1708206642692,-500.0,0.00029041,2]
[314344164,1708206642702,-915.42,0.00029041,2]
[314344165,1708206642712,-500.0,0.00029041,2]
[314344166,1708206642721,-500.0,0.00029041,2]
[314344167,1708206642730,-500.0,0.00029041,2]
[314344168,1708206642739,-500.0,0.00029041,2]
[314344169,1708206642748,-500.0,0.00029041,2]
[314344170,1708206642756,-500.0,0.00029041,2]
[314344171,1708206642766,-514.96,0.00029041,2]
[314344172,1708206642775,-500.0,0.00029041,2]
[314344173,1708206642786,-3229.71,0.00029041,2]
[314344174,1708206642797,-2194.96,0.00029041,2]
[314344175,1708206642806,-176.01309,0.00029072,2]
[314344176,1708206642815,-731.21,0.00029315,2]
[314344177,1708206642824,-632.14,0.00029315,2]
[314344178,1708206642834,-609.27,0.00029315,2]
[314344179,1708206642843,-183.11041211,0.00029315,2]
[314344180,1708206642852,-500.0,0.00029315,2]
[314344181,1708206642862,-500.0,0.00029315,2]
[314344182,1708206642871,-2279.69,0.00029315,2]
[314344184,1708206642880,-500.0,0.00029315,2]
[314344186,1708206642888,-500.0,0.00029315,2]
[314344188,1708206642897,-707.55,0.00029315,2]
[314344190,1708206642906,-4055.31,0.00029315,2]
[314344192,1708206642915,-500.0,0.00029315,2]
[314344194,1708206642924,-382.04,0.00029315,2]
[314344196,1708206642933,-2188.75,0.00029315,2]
[314344197,1708206642942,-2194.48,0.00029315,2]
[314344198,1708206642951,-648.65,0.00029315,2]
[314344200,1708206642960,-3371.54,0.00029315,2]
[314344202,1708206642969,-673.83,0.00029315,2]
[314344204,1708206642978,-500.0,0.00029315,2]
[314344206,1708206642987,-507.67,0.00029315,2]
[314344207,1708206642996,-915.42,0.00029315,2]
[314344208,1708206643005,-500.0,0.00029315,2]
[314344209,1708206643015,-500.0,0.00029315,2]
[314344210,1708206643024,-500.0,0.00029315,2]
[314344211,1708206643033,-500.0,0.00029315,2]
[314344212,1708206643042,-500.0,0.00029315,2]
[314344213,1708206643051,-500.0,0.00029315,2]
[314344214,1708206643060,-514.96,0.00029315,2]
[314344215,1708206643069,-444.72726313,0.00029315,2]
[314344216,1708206643078,-3229.71,0.00029315,2]
[314344217,1708206643087,-2194.96,0.00029315,2]
[314344218,1708206643096,-163.373075,0.00029541,2]
[314344219,1708206643105,-166.496741,0.00029541,2]
[314344220,1708206643114,-158.431479,0.00029541,2]
[314344221,1708206643123,-176.01309,0.00029541,2]
[314344222,1708206643132,-731.21,0.00029589,2]
[314344223,1708206643142,-632.14,0.00029589,2]
[314344224,1708206643151,-609.27,0.00029589,2]
[314344225,1708206643160,-500.0,0.00029589,2]
[314344226,1708206643169,-500.0,0.00029589,2]
[314344227,1708206643178,-2279.69,0.00029589,2]
[314344228,1708206643187,-287.66339356,0.00029589,2]
[314344229,1708206643196,-500.0,0.00029589,2]
[314344230,1708206643205,-707.55,0.00029589,2]
[314344231,1708206643214,-4055.31,0.00029589,2]
[314344232,1708206643224,-500.0,0.00029589,2]
[314344233,1708206643233,-2188.75,0.00029589,2]
[314344234,1708206643243,-2194.48,0.00029589,2]
[314344235,1708206643251,-648.65,0.00029589,2]
[314344236,1708206643260,-3371.54,0.00029589,2]
[314344237,1708206643269,-673.83,0.00029589,2]
[314344238,1708206643278,-500.0,0.00029589,2]
[314344239,1708206643288,-915.42,0.00029589,2]
[314344240,1708206643297,-500.0,0.00029589,2]
[314344241,1708206643306,-500.0,0.00029589,2]
[314344243,1708206643315,-500.0,0.00029589,2]
[314344244,1708206643324,-500.0,0.00029589,2]
[314344245,1708206643333,-500.0,0.00029589,2]
[314344246,1708206643342,-500.0,0.00029589,2]
[314344247,1708206643351,-514.96,0.00029589,2]
[314344248,1708206643362,-3229.71,0.00029589,2]
[314344249,1708206643373,-2194.96,0.00029589,2]
[314344250,1708206643383,-306.0,0.00029589,2]
[314344251,1708206643392,-160.24275126,0.00029863,3]
[314344252,1708206643401,-731.21,0.00029863,2]
[314344253,1708206643410,-632.14,0.00029863,2]
[314344254,1708206643420,-609.27,0.00029863,2]
[314344255,1708206643430,-500.0,0.00029863,2]
[314344256,1708206643439,-500.0,0.00029863,2]
[314344257,1708206643448,-2279.69,0.00029863,2]
[314344258,1708206643457,-500.0,0.00029863,2]
[314344259,1708206643466,-707.55,0.00029863,2]
[314344260,1708206643476,-4055.31,0.00029863,2]
[314344261,1708206643485,-500.0,0.00029863,2]
[314344262,1708206643494,-2188.75,0.00029863,2]
[314344263,1708206643503,-2194.48,0.00029863,2]
[314344264,1708206643512,-648.65,0.00029863,2]
[314344265,1708206643521,-3371.54,0.00029863,2]
[314344266,1708206643530,-673.83,0.00029863,2]
[314344267,1708206643539,-500.0,0.00029863,2]
[314344268,1708206643548,-915.42,0.00029863,2]
[314344269,1708206643557,-500.0,0.00029863,2]
[314344270,1708206643567,-500.0,0.00029863,2]
[314344271,1708206643576,-500.0,0.00029863,2]
[314344272,1708206643586,-500.0,0.00029863,2]
[314344273,1708206643595,-500.0,0.00029863,2]
[314344274,1708206643604,-500.0,0.00029863,2]
[314344275,1708206643614,-514.96,0.00029863,2]
[314344276,1708206643623,-3229.71,0.00029863,2]
[314344277,1708206643633,-2194.96,0.00029863,2]
[314344278,1708206643642,-300.0,0.00029943,2]
[314344279,1708206643651,-261.0,0.0003,2]
[314344280,1708206643660,-198.27007556,0.00030135,4]
[314344281,1708206643670,-731.21,0.00030136,2]
[314344282,1708206643679,-632.14,0.00030136,2]
[314344283,1708206643688,-609.27,0.00030136,2]
[314344284,1708206643697,-500.0,0.00030136,2]
[314344285,1708206643707,-500.0,0.00030136,2]
[314344286,1708206643719,-2279.69,0.00030136,2]
[314344287,1708206643729,-500.0,0.00030136,2]
[314344288,1708206643738,-707.55,0.00030136,2]
[314344289,1708206643817,-4055.31,0.00030136,2]
[314344290,1708206643827,-510.30926389,0.00030136,2]
[314344291,1708206643837,-2188.75,0.00030136,2]
[314344292,1708206643847,-2194.48,0.00030136,2]
[314344293,1708206643856,-648.65,0.00030136,2]
[314344294,1708206643869,-3371.54,0.00030136,2]
[314344295,1708206643878,-673.83,0.00030136,2]
[314344296,1708206643887,-500.0,0.00030136,2]
[314344297,1708206643896,-915.42,0.00030136,2]
[314344298,1708206643905,-500.0,0.00030136,2]
[314344299,1708206643914,-500.0,0.00030136,2]
[314344300,1708206643923,-500.0,0.00030136,2]
[314344301,1708206643932,-500.0,0.00030136,2]
[314344302,1708206643942,-500.0,0.00030136,2]
[314344303,1708206643950,-500.0,0.00030136,2]
[314344304,1708206643960,-514.96,0.00030136,2]
[314344305,1708206643970,-3229.71,0.00030136,2]
[314344306,1708206643979,-2194.96,0.00030136,2]
[314344307,1708206643988,-155.0,0.00030137,2]
[314344308,1708206643997,-1562.99665796,0.00030297,2]
[314344309,1708206644007,-620.0693369,0.00030396,2]
[314344310,1708206644016,-621.32086794,0.00030402,2]
[314344311,1708206644025,-731.21,0.0003041,2]
[314344312,1708206644034,-632.14,0.0003041,2]
[314344313,1708206644043,-609.27,0.0003041,2]
[314344314,1708206644052,-500.0,0.0003041,2]
[314344315,1708206644061,-500.0,0.0003041,2]
[314344316,1708206644070,-2279.69,0.0003041,2]
[314344317,1708206644079,-500.0,0.0003041,2]
[314344318,1708206644089,-707.55,0.0003041,2]
[314344319,1708206644098,-4055.31,0.0003041,2]
[314344320,1708206644107,-2188.75,0.0003041,2]
[314344321,1708206644116,-2194.48,0.0003041,2]
[314344322,1708206644126,-648.65,0.0003041,2]
[314344323,1708206644135,-3371.54,0.0003041,2]
[314344324,1708206644144,-673.83,0.0003041,2]
[314344325,1708206644153,-500.0,0.0003041,2]
[314344326,1708206644163,-915.42,0.0003041,2]
[314344327,1708206644172,-500.0,0.0003041,2]
[314344328,1708206644181,-500.0,0.0003041,2]
[314344329,1708206644190,-500.0,0.0003041,2]
[314344330,1708206644199,-500.0,0.0003041,2]
[314344331,1708206644208,-500.0,0.0003041,2]
[314344332,1708206644217,-500.0,0.0003041,2]
[314344333,1708206644228,-514.96,0.0003041,2]
[314344334,1708206644237,-3229.71,0.0003041,2]
[314344335,1708206644246,-2194.96,0.0003041,2]
[314344336,1708206644254,-731.21,0.00030684,2]
[314344337,1708206644264,-632.14,0.00030684,2]
[314344338,1708206644273,-609.27,0.00030684,2]
[314344339,1708206644283,-405.53960382,0.00030684,2]
[314344340,1708206644292,-500.0,0.00030684,2]
[314344341,1708206644301,-2279.69,0.00030684,2]
[314344342,1708206644311,-500.0,0.00030684,2]
[314344343,1708206644320,-707.55,0.00030684,2]
[314344344,1708206644329,-4055.31,0.00030684,2]
[314344345,1708206644338,-2188.75,0.00030684,2]
[314344346,1708206644346,-2194.48,0.00030684,2]
[314344347,1708206644356,-648.65,0.00030684,2]
[314344348,1708206644365,-3371.54,0.00030684,2]
[314344349,1708206644374,-673.83,0.00030684,2]
[314344350,1708206644384,-500.0,0.00030684,2]
[314344351,1708206644393,-915.42,0.00030684,2]
[314344352,1708206644402,-500.0,0.00030684,2]
[314344353,1708206644412,-500.0,0.00030684,2]
[314344354,1708206644420,-500.0,0.00030684,2]
[314344355,1708206644430,-500.0,0.00030684,2]
[314344356,1708206644439,-500.0,0.00030684,2]
[314344357,1708206644448,-500.0,0.00030684,2]
[314344358,1708206644457,-514.96,0.00030684,2]
[314344359,1708206644466,-2194.96,0.00030684,2]
[314344360,1708206644477,-3229.71,0.00030684,2]
[314344361,1708206644486,-731.21,0.00030958,2]
[314344362,1708206644495,-632.14,0.00030958,2]
[314344363,1708206644504,-609.27,0.00030958,2]
[314344364,1708206644513,-500.0,0.00030958,2]
[314344365,1708206644522,-2279.69,0.00030958,2]
[314344366,1708206644532,-500.0,0.00030958,2]
[314344367,1708206644541,-707.55,0.00030958,2]
[314344368,1708206644550,-4055.31,0.00030958,2]
[314344369,1708206644559,-2188.75,0.00030958,2]
[314344370,1708206644568,-2194.48,0.00030958,2]
[314344371,1708206644577,-648.65,0.00030958,2]
[314344372,1708206644587,-3371.54,0.00030958,2]
[314344373,1708206644596,-673.83,0.00030958,2]
[314344374,1708206644605,-500.0,0.00030958,2]
[314344375,1708206644614,-915.42,0.00030958,2]
[314344376,1708206644624,-500.0,0.00030958,2]
[314344377,1708206644633,-500.0,0.00030958,2]
[314344378,1708206644642,-500.0,0.00030958,2]
[314344379,1708206644651,-500.0,0.00030958,2]
[314344380,1708206644661,-500.0,0.00030958,2]
[314344381,1708206644670,-491.36708487,0.00030958,2]
[314344382,1708206644679,-514.96,0.00030958,2]
[314344383,1708206644688,-2194.96,0.00030958,2]
[314344384,1708206644697,-3229.71,0.00030958,2]
[314344385,1708206644707,-1318.0,0.00031,7]
[314344386,1708206644716,-12126.0,0.00031,7]
[314344387,1708206644726,-153.34627262,0.00031152,7]
[314344388,1708206644735,-777.0,0.000312,2]
[314344389,1708206644745,-731.21,0.00031232,2]
[314344390,1708206644754,-632.14,0.00031232,2]
[314344391,1708206644763,-609.27,0.00031232,2]
[314344392,1708206644772,-300.49647805,0.00031232,2]
[314344393,1708206644782,-2279.69,0.00031232,2]
[314344394,1708206644794,-500.0,0.00031232,2]
[314344395,1708206644803,-707.55,0.00031232,2]
[314344396,1708206644813,-4055.31,0.00031232,2]
[314344397,1708206644822,-2188.75,0.00031232,2]
[314344398,1708206644832,-2194.48,0.00031232,2]
[314344399,1708206644841,-648.65,0.00031232,2]
[314344400,1708206644850,-3371.54,0.00031232,2]
[314344401,1708206644859,-387.64747415,0.00031232,2]
[314344402,1708206644966,-286.85994,0.00024938,2]
[314344403,1708206644976,-4399.80091532,0.00027497,3]
[314344404,1708206644992,-6.89908468,0.00027497,3]
[314344405,1708206645002,-286.18252585,0.00031232,2]
[314344406,1708206645012,-500.0,0.00031232,2]
[314344407,1708206645021,-915.42,0.00031232,2]
[314344408,1708206645030,-398.47006674,0.00031232,2]
[314344409,1708206645039,-500.0,0.00031232,2]
[314344410,1708206645048,-500.0,0.00031232,2]
[314344411,1708206645057,-500.0,0.00031232,2]
[314344412,1708206645066,-500.0,0.00031232,2]
[314344413,1708206645076,-514.96,0.00031232,2]
[314344414,1708206645085,-2194.96,0.00031232,2]
[314344415,1708206645093,-3229.71,0.00031232,2]
[314344416,1708206645103,-179.57433235,0.00031239,7]
[314344417,1708206645113,-1195.69461389,0.00031244,7]
[314344418,1708206645122,-481.61634146,0.00031244,7]
[314344420,1708206645131,-413.38735975,0.00031244,7]
[314344421,1708206645139,-572.05700444,0.00031244,7]
[314344423,1708206645148,-731.21,0.00031506,2]
[314344425,1708206645157,-632.14,0.00031506,2]
[314344426,1708206645166,-609.27,0.00031506,2]
[314344427,1708206645176,-2279.69,0.00031506,2]
[314344428,1708206645185,-500.0,0.00031506,2]
[314344429,1708206645194,-707.55,0.00031506,2]
[314344430,1708206645203,-4055.31,0.00031506,2]
[314344431,1708206645212,-2188.75,0.00031506,2]
[314344432,1708206645222,-2194.48,0.00031506,2]
[314344433,1708206645232,-648.65,0.00031506,2]
[314344434,1708206645241,-3371.54,0.00031506,2]
[314344436,1708206645250,-673.83,0.00031506,2]
[314344438,1708206645259,-500.0,0.00031506,2]
[314344440,1708206645268,-915.42,0.00031506,2]
[314344441,1708206645277,-500.0,0.00031506,2]
[314344442,1708206645286,-395.22,0.00031506,2]
[314344443,1708206645295,-500.0,0.00031506,2]
[314344444,1708206645304,-500.0,0.00031506,2]
[314344445,1708206645313,-514.96,0.00031506,2]
[314344446,1708206645322,-2194.96,0.00031506,2]
[314344447,1708206645332,-3229.71,0.00031506,2]
[314344448,1708206645341,-155.0,0.00031507,2]
[314344449,1708206645350,-155.12394705,0.00031528,2]
[314344450,1708206645359,-182.95614971,0.00031576,5]
[314344451,1708206645368,-152.26079786,0.00031623,2]
[314344452,1708206645378,-150.5,0.00031663,35]
[314344453,1708206645387,-151.0,0.00031672,2]
[314344454,1708206645396,-151.0,0.00031673,2]
[314344455,1708206645405,-151.0,0.00031674,2]
[314344456,1708206645414,-151.0,0.00031674,2]
[314344458,1708206645423,-258.780873,0.00031674,2]
[314344460,1708206645433,-151.0,0.00031674,2]
[314344461,1708206645442,-506.30831063,0.00031675,7]
[314344462,1708206645451,-500.0,0.00031675,7]
[314344463,1708206645461,-500.0,0.00031675,7]
[314344464,1708206645469,-500.0,0.00031675,7]
[314344465,1708206645479,-500.0,0.00031675,7]
[314344466,1708206645488,-253.75866901,0.00031675,7]
[314344467,1708206645498,-554.7492813,0.00031675,7]
[314344468,1708206645508,-4591.95,0.00031675,2]